{"text_format":"1","workbook":"xlsx","n_sheets":2,"sheets":["Lønangivelse","stubbe_skabelon"],"not_rendered":{"charts":0,"images":0,"macros":1,"external_links":0,"defined_names":7,"comments":0,"pivot_tables":0},"unopened":[],"bounds":{"document_bytes":16777216,"sheet_cells":100000,"rows_first":2000,"rows_last":500,"rows_between":2000,"halvings":0,"cell_chars":16384,"cell_head_chars":4096},"cells_cut":0,"cells_raw":0,"read":"whole","date_system":"1900"}

{"sheet":"Lønangivelse","index":0,"n_rows":13,"n_cols":24,"rows_kept":13,"cut":false,"hidden":false,"merged":[]}
[null,"LØNBEREGNING",null,null,null,null,null,null,null,null,"AFSLUTNING PÅ PERIODE:",41372,null,"FIRMANAVN:",null,"ADVENTURE WORKS"]
[]
[null,"Id","Medarbejderens navn","Normalt antal arbejdstimer","Timer pga. ferie","Timer\npga. sygdom","Timer pga. overtid","Overtidssats","Brutto- betaling","Skatter og fradrag","Andre\nfradrag","Nettobetaling"," ","Timeløn","Skatte-\nstatus","Føderalt\nfradrag","Delstats-\nskat","Føderal\nindkomstskat","Sygesirings-\nskat","Skat til \nMedicare","Indeholdt skat i alt","Fradrag pga. forsikring","Andre almindelige fradrag","Almindelige\nfradrag i alt"]
[null,1001,"Tony Smith",50,5,1,null,null,{"$f":"SUM(Medarbejdere[[#This Row],[Normalt antal arbejdstimer]:[Timer\npga. sygdom]])*Medarbejdere[[#This Row],[Timeløn]]+Medarbejdere[[#This Row],[Timer pga. overtid]]*Medarbejdere[[#This Row],[Overtidssats]]","v":560},{"$f":"Medarbejdere[[#This Row],[Brutto- betaling]]*Medarbejdere[[#This Row],[Indeholdt skat i alt]]+Medarbejdere[[#This Row],[Almindelige\nfradrag i alt]]","v":273.08000000000004},20,{"$f":"Medarbejdere[[#This Row],[Brutto- betaling]]-Medarbejdere[[#This Row],[Skatter og fradrag]]-Medarbejdere[[#This Row],[Andre\nfradrag]]","v":266.91999999999996},null,10,1,4,2.3E-2,0.28000000000000003,6.3E-2,1.4500000000000001E-2,{"$f":"SUM(Medarbejdere[[#This Row],[Delstats-\nskat]:[Skat til \nMedicare]])","v":0.38050000000000006},20,40,{"$f":"SUM(Medarbejdere[[#This Row],[Fradrag pga. forsikring]:[Andre almindelige fradrag]])","v":60}]
[null,1002,"David Jones",40,null,null,null,null,{"$f":"SUM(Medarbejdere[[#This Row],[Normalt antal arbejdstimer]:[Timer\npga. sygdom]])*Medarbejdere[[#This Row],[Timeløn]]+Medarbejdere[[#This Row],[Timer pga. overtid]]*Medarbejdere[[#This Row],[Overtidssats]]","v":320},{"$f":"Medarbejdere[[#This Row],[Brutto- betaling]]*Medarbejdere[[#This Row],[Indeholdt skat i alt]]+Medarbejdere[[#This Row],[Almindelige\nfradrag i alt]]","v":131.76000000000002},null,{"$f":"Medarbejdere[[#This Row],[Brutto- betaling]]-Medarbejdere[[#This Row],[Skatter og fradrag]]-Medarbejdere[[#This Row],[Andre\nfradrag]]","v":188.23999999999998},null,8,1,1,2.3E-2,0.28000000000000003,6.3E-2,1.4500000000000001E-2,{"$f":"SUM(Medarbejdere[[#This Row],[Delstats-\nskat]:[Skat til \nMedicare]])","v":0.38050000000000006},0,10,{"$f":"SUM(Medarbejdere[[#This Row],[Fradrag pga. forsikring]:[Andre almindelige fradrag]])","v":10}]
[null,1003,"Denise Smith",35,3,null,null,null,{"$f":"SUM(Medarbejdere[[#This Row],[Normalt antal arbejdstimer]:[Timer\npga. sygdom]])*Medarbejdere[[#This Row],[Timeløn]]+Medarbejdere[[#This Row],[Timer pga. overtid]]*Medarbejdere[[#This Row],[Overtidssats]]","v":532},{"$f":"Medarbejdere[[#This Row],[Brutto- betaling]]*Medarbejdere[[#This Row],[Indeholdt skat i alt]]+Medarbejdere[[#This Row],[Almindelige\nfradrag i alt]]","v":240.42600000000004},null,{"$f":"Medarbejdere[[#This Row],[Brutto- betaling]]-Medarbejdere[[#This Row],[Skatter og fradrag]]-Medarbejdere[[#This Row],[Andre\nfradrag]]","v":291.57399999999996},null,14,1,3,2.3E-2,0.28000000000000003,6.3E-2,1.4500000000000001E-2,{"$f":"SUM(Medarbejdere[[#This Row],[Delstats-\nskat]:[Skat til \nMedicare]])","v":0.38050000000000006},18,20,{"$f":"SUM(Medarbejdere[[#This Row],[Fradrag pga. forsikring]:[Andre almindelige fradrag]])","v":38}]
[null,1008,"Sebastien Motte",50,5,1,null,null,{"$f":"SUM(Medarbejdere[[#This Row],[Normalt antal arbejdstimer]:[Timer\npga. sygdom]])*Medarbejdere[[#This Row],[Timeløn]]+Medarbejdere[[#This Row],[Timer pga. overtid]]*Medarbejdere[[#This Row],[Overtidssats]]","v":1120},{"$f":"Medarbejdere[[#This Row],[Brutto- betaling]]*Medarbejdere[[#This Row],[Indeholdt skat i alt]]+Medarbejdere[[#This Row],[Almindelige\nfradrag i alt]]","v":441.16000000000008},null,{"$f":"Medarbejdere[[#This Row],[Brutto- betaling]]-Medarbejdere[[#This Row],[Skatter og fradrag]]-Medarbejdere[[#This Row],[Andre\nfradrag]]","v":678.83999999999992},null,20,1,0,2.3E-2,0.28000000000000003,6.3E-2,1.4500000000000001E-2,{"$f":"SUM(Medarbejdere[[#This Row],[Delstats-\nskat]:[Skat til \nMedicare]])","v":0.38050000000000006},15,null,{"$f":"SUM(Medarbejdere[[#This Row],[Fradrag pga. forsikring]:[Andre almindelige fradrag]])","v":15}]
[null,1011,"Isabelle Scemla",40,null,null,2,15,{"$f":"SUM(Medarbejdere[[#This Row],[Normalt antal arbejdstimer]:[Timer\npga. sygdom]])*Medarbejdere[[#This Row],[Timeløn]]+Medarbejdere[[#This Row],[Timer pga. overtid]]*Medarbejdere[[#This Row],[Overtidssats]]","v":430},{"$f":"Medarbejdere[[#This Row],[Brutto- betaling]]*Medarbejdere[[#This Row],[Indeholdt skat i alt]]+Medarbejdere[[#This Row],[Almindelige\nfradrag i alt]]","v":223.61500000000004},null,{"$f":"Medarbejdere[[#This Row],[Brutto- betaling]]-Medarbejdere[[#This Row],[Skatter og fradrag]]-Medarbejdere[[#This Row],[Andre\nfradrag]]","v":206.38499999999996},null,10,1,0,2.3E-2,0.28000000000000003,6.3E-2,1.4500000000000001E-2,{"$f":"SUM(Medarbejdere[[#This Row],[Delstats-\nskat]:[Skat til \nMedicare]])","v":0.38050000000000006},20,40,{"$f":"SUM(Medarbejdere[[#This Row],[Fradrag pga. forsikring]:[Andre almindelige fradrag]])","v":60}]
[null,1012,"David Bristol",40,5,1,null,null,{"$f":"SUM(Medarbejdere[[#This Row],[Normalt antal arbejdstimer]:[Timer\npga. sygdom]])*Medarbejdere[[#This Row],[Timeløn]]+Medarbejdere[[#This Row],[Timer pga. overtid]]*Medarbejdere[[#This Row],[Overtidssats]]","v":552},{"$f":"Medarbejdere[[#This Row],[Brutto- betaling]]*Medarbejdere[[#This Row],[Indeholdt skat i alt]]+Medarbejdere[[#This Row],[Almindelige\nfradrag i alt]]","v":270.03600000000006},null,{"$f":"Medarbejdere[[#This Row],[Brutto- betaling]]-Medarbejdere[[#This Row],[Skatter og fradrag]]-Medarbejdere[[#This Row],[Andre\nfradrag]]","v":281.96399999999994},null,12,1,4,2.3E-2,0.28000000000000003,6.3E-2,1.4500000000000001E-2,{"$f":"SUM(Medarbejdere[[#This Row],[Delstats-\nskat]:[Skat til \nMedicare]])","v":0.38050000000000006},20,40,{"$f":"SUM(Medarbejdere[[#This Row],[Fradrag pga. forsikring]:[Andre almindelige fradrag]])","v":60}]
[null,1025,"Anne Weiler",36,null,2,1,18,{"$f":"SUM(Medarbejdere[[#This Row],[Normalt antal arbejdstimer]:[Timer\npga. sygdom]])*Medarbejdere[[#This Row],[Timeløn]]+Medarbejdere[[#This Row],[Timer pga. overtid]]*Medarbejdere[[#This Row],[Overtidssats]]","v":474},{"$f":"Medarbejdere[[#This Row],[Brutto- betaling]]*Medarbejdere[[#This Row],[Indeholdt skat i alt]]+Medarbejdere[[#This Row],[Almindelige\nfradrag i alt]]","v":225.35700000000003},25,{"$f":"Medarbejdere[[#This Row],[Brutto- betaling]]-Medarbejdere[[#This Row],[Skatter og fradrag]]-Medarbejdere[[#This Row],[Andre\nfradrag]]","v":223.64299999999997},null,12,1,2,2.3E-2,0.28000000000000003,6.3E-2,1.4500000000000001E-2,{"$f":"SUM(Medarbejdere[[#This Row],[Delstats-\nskat]:[Skat til \nMedicare]])","v":0.38050000000000006},25,20,{"$f":"SUM(Medarbejdere[[#This Row],[Fradrag pga. forsikring]:[Andre almindelige fradrag]])","v":45}]
[null,1032,"Luka Abrus",40,5,1,null,null,{"$f":"SUM(Medarbejdere[[#This Row],[Normalt antal arbejdstimer]:[Timer\npga. sygdom]])*Medarbejdere[[#This Row],[Timeløn]]+Medarbejdere[[#This Row],[Timer pga. overtid]]*Medarbejdere[[#This Row],[Overtidssats]]","v":460},{"$f":"Medarbejdere[[#This Row],[Brutto- betaling]]*Medarbejdere[[#This Row],[Indeholdt skat i alt]]+Medarbejdere[[#This Row],[Almindelige\nfradrag i alt]]","v":175.03000000000003},50,{"$f":"Medarbejdere[[#This Row],[Brutto- betaling]]-Medarbejdere[[#This Row],[Skatter og fradrag]]-Medarbejdere[[#This Row],[Andre\nfradrag]]","v":234.96999999999997},null,10,1,3,2.3E-2,0.28000000000000003,6.3E-2,1.4500000000000001E-2,{"$f":"SUM(Medarbejdere[[#This Row],[Delstats-\nskat]:[Skat til \nMedicare]])","v":0.38050000000000006},null,null,{"$f":"SUM(Medarbejdere[[#This Row],[Fradrag pga. forsikring]:[Andre almindelige fradrag]])","v":0}]
[null,1049,"David Ludwig",40,1,null,null,null,{"$f":"SUM(Medarbejdere[[#This Row],[Normalt antal arbejdstimer]:[Timer\npga. sygdom]])*Medarbejdere[[#This Row],[Timeløn]]+Medarbejdere[[#This Row],[Timer pga. overtid]]*Medarbejdere[[#This Row],[Overtidssats]]","v":615},{"$f":"Medarbejdere[[#This Row],[Brutto- betaling]]*Medarbejdere[[#This Row],[Indeholdt skat i alt]]+Medarbejdere[[#This Row],[Almindelige\nfradrag i alt]]","v":259.00750000000005},23,{"$f":"Medarbejdere[[#This Row],[Brutto- betaling]]-Medarbejdere[[#This Row],[Skatter og fradrag]]-Medarbejdere[[#This Row],[Andre\nfradrag]]","v":332.99249999999995},null,15,1,2,2.3E-2,0.28000000000000003,6.3E-2,1.4500000000000001E-2,{"$f":"SUM(Medarbejdere[[#This Row],[Delstats-\nskat]:[Skat til \nMedicare]])","v":0.38050000000000006},25,null,{"$f":"SUM(Medarbejdere[[#This Row],[Fradrag pga. forsikring]:[Andre almindelige fradrag]])","v":25}]
[null,"Totaler",{"$f":"SUBTOTAL(103,Medarbejdere[Medarbejderens navn])","v":9},{"$f":"SUBTOTAL(109,Medarbejdere[Normalt antal arbejdstimer])","v":371},{"$f":"SUBTOTAL(109,Medarbejdere[Timer pga. ferie])","v":24},{"$f":"SUBTOTAL(109,Medarbejdere[Timer\npga. sygdom])","v":6},{"$f":"SUBTOTAL(109,Medarbejdere[Timer pga. overtid])","v":3},null,{"$f":"SUBTOTAL(109,Medarbejdere[Brutto- betaling])","v":5063},{"$f":"SUBTOTAL(109,Medarbejdere[Skatter og fradrag])","v":2239.4715000000001},{"$f":"SUBTOTAL(109,Medarbejdere[Andre\nfradrag])","v":118},{"$f":"SUBTOTAL(109,Medarbejdere[Nettobetaling])","v":2705.5284999999994},null,null,null,null,null,null,null,null,null,{"$f":"SUBTOTAL(109,Medarbejdere[Fradrag pga. forsikring])","v":143},{"$f":"SUBTOTAL(109,Medarbejdere[Andre almindelige fradrag])","v":170},{"$f":"SUBTOTAL(109,Medarbejdere[Almindelige\nfradrag i alt])","v":313}]

{"sheet":"stubbe_skabelon","index":1,"n_rows":47,"n_cols":13,"rows_kept":47,"cut":false,"hidden":true,"merged":[[45,2,45,3],[32,2,32,3],[33,2,33,3],[20,2,20,3],[21,2,21,3],[2,3,2,4],[14,3,14,4],[26,3,26,4],[38,3,38,4],[44,2,44,3],[8,2,8,3],[9,2,9,3],[2,7,2,8],[14,7,14,8],[26,7,26,8],[38,7,38,8],[38,11,38,12],[26,11,26,12],[14,11,14,12],[2,11,2,12]]}
[]
[null,null,{"$f":"Firmanavn","v":"ADVENTURE WORKS"}]
[null,null,"PERIODE",{"$f":"PeriodeAfslutning","v":41372},null,null,"NAVN",{"$f":"IFERROR(INDEX(#REF!,Stub),\"\")","v":""},null,null,"MEDARBEJDER-ID",{"$f":"IFERROR(INDEX(Medarbejdere[Id],Stub),\"\")","v":1001}]
[null,null,"Skattestatus",null,{"$f":"IFERROR(INDEX(Medarbejdere[Skatte-\nstatus],Stub),\"\")","v":1},null,"Føderalt fradrag (fra W-4)",null,{"$f":"IFERROR(INDEX(Medarbejdere[Føderalt\nfradrag],Stub),\"\")","v":4},null,"Timer, der er arbejdet",null,{"$f":"IFERROR(INDEX(Medarbejdere[Normalt antal arbejdstimer],Stub),\"\")","v":50}]
[null,null,"Timesats",null,{"$f":"IFERROR(INDEX(Medarbejdere[Timeløn],Stub),\"\")","v":10},null,"Overtidssats",null,{"$f":"IFERROR(INDEX(Medarbejdere[Overtidssats],Stub),\"\")","v":0},null,"Timer pga. sygdom",null,{"$f":"IFERROR(INDEX(Medarbejdere[Timer\npga. sygdom],Stub),\"\")","v":1}]
[null,null,"Sygesikringsskat",null,{"$f":"IFERROR(INDEX(Medarbejdere[Sygesirings-\nskat],Stub)  *  INDEX(Medarbejdere[Brutto- betaling],Stub),\"\")","v":35.28},null,"Føderal indkomstskat ",null,{"$f":"IFERROR(INDEX(Medarbejdere[Føderal\nindkomstskat],Stub)  *  INDEX(Medarbejdere[Brutto- betaling],Stub),\"\")","v":156.80000000000001},null,"Timer pga. ferie",null,{"$f":"IFERROR(INDEX(Medarbejdere[Timer pga. ferie],Stub),\"\")","v":5}]
[null,null,"Skat for medicare ",null,{"$f":"IFERROR(INDEX(Medarbejdere[Skat til \nMedicare],Stub)  *  INDEX(Medarbejdere[Brutto- betaling],Stub),\"\")","v":8.120000000000001},null,"Delstatsskat ",null,{"$f":"IFERROR(INDEX(Medarbejdere[Delstats-\nskat],Stub)  *  INDEX(Medarbejdere[Brutto- betaling],Stub),\"\")","v":12.879999999999999},null,"Timer pga. overtid",null,{"$f":"IFERROR(INDEX(Medarbejdere[Timer pga. overtid],Stub),\"\")","v":0}]
[null,null,"Fradrag pga. forsikring",null,{"$f":"IFERROR(INDEX(Medarbejdere[Fradrag pga. forsikring],Stub),\"\")","v":20},null,"Andet almindeligt fradrag",null,{"$f":"IFERROR(INDEX(Medarbejdere[Andre almindelige fradrag],Stub),\"\")","v":40},null,"Bruttoløn",null,{"$f":"IFERROR(INDEX(Medarbejdere[Brutto- betaling],Stub),\"\")","v":560}]
[null,null,"Skatter og almindelige",null,{"$f":"IFERROR(INDEX(Medarbejdere[Skatter og fradrag],Stub),\"\")","v":273.08000000000004},null,"Andet fradrag",null,{"$f":"IFERROR(INDEX(Medarbejdere[Andre\nfradrag],Stub),\"\")","v":20},null,"Skatter og fradrag i alt ",null,{"$f":"IFERROR(INDEX(Medarbejdere[Skatter og fradrag],Stub)  +  INDEX(Medarbejdere[Andre\nfradrag],Stub),\"\")","v":293.08000000000004}]
[null,null,"fradrag i alt "]
[null,null,null,null,null,null,null,null,null,null,"NETTOLØN",null,{"$f":"IFERROR(INDEX(Medarbejdere[Nettobetaling],Stub),\"\")","v":266.91999999999996}]
[]
[]
[null,null,{"$f":"Firmanavn","v":"ADVENTURE WORKS"}]
[null,null,"PERIODE",{"$f":"PeriodeAfslutning","v":41372},null,null,"NAVN",{"$f":"IFERROR(INDEX(#REF!,Stub),\"\")","v":""},null,null,"MEDARBEJDER-ID",{"$f":"IFERROR(INDEX(Medarbejdere[Id],Stub),\"\")","v":1002}]
[null,null,"Skattestatus",null,{"$f":"IFERROR(INDEX(Medarbejdere[Skatte-\nstatus],Stub),\"\")","v":1},null,"Føderalt fradrag (fra W-4)",null,{"$f":"IFERROR(INDEX(Medarbejdere[Føderalt\nfradrag],Stub),\"\")","v":1},null,"Timer, der er arbejdet",null,{"$f":"IFERROR(INDEX(Medarbejdere[Normalt antal arbejdstimer],Stub),\"\")","v":40}]
[null,null,"Timesats",null,{"$f":"IFERROR(INDEX(Medarbejdere[Timeløn],Stub),\"\")","v":8},null,"Overtidssats",null,{"$f":"IFERROR(INDEX(Medarbejdere[Overtidssats],Stub),\"\")","v":0},null,"Timer pga. sygdom",null,{"$f":"IFERROR(INDEX(Medarbejdere[Timer\npga. sygdom],Stub),\"\")","v":0}]
[null,null,"Sygesikringsskat",null,{"$f":"IFERROR(INDEX(Medarbejdere[Sygesirings-\nskat],Stub)  *  INDEX(Medarbejdere[Brutto- betaling],Stub),\"\")","v":20.16},null,"Føderal indkomstskat ",null,{"$f":"IFERROR(INDEX(Medarbejdere[Føderal\nindkomstskat],Stub)  *  INDEX(Medarbejdere[Brutto- betaling],Stub),\"\")","v":89.600000000000009},null,"Timer pga. ferie",null,{"$f":"IFERROR(INDEX(Medarbejdere[Timer pga. ferie],Stub),\"\")","v":0}]
[null,null,"Skat for medicare ",null,{"$f":"IFERROR(INDEX(Medarbejdere[Skat til \nMedicare],Stub)  *  INDEX(Medarbejdere[Brutto- betaling],Stub),\"\")","v":4.6400000000000006},null,"Delstatsskat ",null,{"$f":"IFERROR(INDEX(Medarbejdere[Delstats-\nskat],Stub)  *  INDEX(Medarbejdere[Brutto- betaling],Stub),\"\")","v":7.3599999999999994},null,"Timer pga. overtid",null,{"$f":"IFERROR(INDEX(Medarbejdere[Timer pga. overtid],Stub),\"\")","v":0}]
[null,null,"Fradrag pga. forsikring",null,{"$f":"IFERROR(INDEX(Medarbejdere[Fradrag pga. forsikring],Stub),\"\")","v":0},null,"Andet almindeligt fradrag",null,{"$f":"IFERROR(INDEX(Medarbejdere[Andre almindelige fradrag],Stub),\"\")","v":10},null,"Bruttoløn",null,{"$f":"IFERROR(INDEX(Medarbejdere[Brutto- betaling],Stub),\"\")","v":320}]
[null,null,"Skatter og almindelige",null,{"$f":"IFERROR(INDEX(Medarbejdere[Skatter og fradrag],Stub),\"\")","v":131.76000000000002},null,"Andet fradrag",null,{"$f":"IFERROR(INDEX(Medarbejdere[Andre\nfradrag],Stub),\"\")","v":0},null,"Skatter og fradrag i alt ",null,{"$f":"IFERROR(INDEX(Medarbejdere[Skatter og fradrag],Stub)  +  INDEX(Medarbejdere[Andre\nfradrag],Stub),\"\")","v":131.76000000000002}]
[null,null,"fradrag i alt "]
[null,null,null,null,null,null,null,null,null,null,"NETTOLØN",null,{"$f":"IFERROR(INDEX(Medarbejdere[Nettobetaling],Stub),\"\")","v":188.23999999999998}]
[]
[]
[null,null,{"$f":"Firmanavn","v":"ADVENTURE WORKS"}]
[null,null,"PERIODE",{"$f":"PeriodeAfslutning","v":41372},null,null,"NAVN",{"$f":"IFERROR(INDEX(#REF!,Stub),\"\")","v":""},null,null,"MEDARBEJDER-ID",{"$f":"IFERROR(INDEX(Medarbejdere[Id],Stub),\"\")","v":1003}]
[null,null,"Skattestatus",null,{"$f":"IFERROR(INDEX(Medarbejdere[Skatte-\nstatus],Stub),\"\")","v":1},null,"Føderalt fradrag (fra W-4)",null,{"$f":"IFERROR(INDEX(Medarbejdere[Føderalt\nfradrag],Stub),\"\")","v":3},null,"Timer, der er arbejdet",null,{"$f":"IFERROR(INDEX(Medarbejdere[Normalt antal arbejdstimer],Stub),\"\")","v":35}]
[null,null,"Timesats",null,{"$f":"IFERROR(INDEX(Medarbejdere[Timeløn],Stub),\"\")","v":14},null,"Overtidssats",null,{"$f":"IFERROR(INDEX(Medarbejdere[Overtidssats],Stub),\"\")","v":0},null,"Timer pga. sygdom",null,{"$f":"IFERROR(INDEX(Medarbejdere[Timer\npga. sygdom],Stub),\"\")","v":0}]
[null,null,"Sygesikringsskat",null,{"$f":"IFERROR(INDEX(Medarbejdere[Sygesirings-\nskat],Stub)  *  INDEX(Medarbejdere[Brutto- betaling],Stub),\"\")","v":33.515999999999998},null,"Føderal indkomstskat ",null,{"$f":"IFERROR(INDEX(Medarbejdere[Føderal\nindkomstskat],Stub)  *  INDEX(Medarbejdere[Brutto- betaling],Stub),\"\")","v":148.96},null,"Timer pga. ferie",null,{"$f":"IFERROR(INDEX(Medarbejdere[Timer pga. ferie],Stub),\"\")","v":3}]
[null,null,"Skat for medicare ",null,{"$f":"IFERROR(INDEX(Medarbejdere[Skat til \nMedicare],Stub)  *  INDEX(Medarbejdere[Brutto- betaling],Stub),\"\")","v":7.7140000000000004},null,"Delstatsskat ",null,{"$f":"IFERROR(INDEX(Medarbejdere[Delstats-\nskat],Stub)  *  INDEX(Medarbejdere[Brutto- betaling],Stub),\"\")","v":12.236000000000001},null,"Timer pga. overtid",null,{"$f":"IFERROR(INDEX(Medarbejdere[Timer pga. overtid],Stub),\"\")","v":0}]
[null,null,"Fradrag pga. forsikring",null,{"$f":"IFERROR(INDEX(Medarbejdere[Fradrag pga. forsikring],Stub),\"\")","v":18},null,"Andet almindeligt fradrag",null,{"$f":"IFERROR(INDEX(Medarbejdere[Andre almindelige fradrag],Stub),\"\")","v":20},null,"Bruttoløn",null,{"$f":"IFERROR(INDEX(Medarbejdere[Brutto- betaling],Stub),\"\")","v":532}]
[null,null,"Skatter og almindelige",null,{"$f":"IFERROR(INDEX(Medarbejdere[Skatter og fradrag],Stub),\"\")","v":240.42600000000004},null,"Andet fradrag",null,{"$f":"IFERROR(INDEX(Medarbejdere[Andre\nfradrag],Stub),\"\")","v":0},null,"Skatter og fradrag i alt ",null,{"$f":"IFERROR(INDEX(Medarbejdere[Skatter og fradrag],Stub)  +  INDEX(Medarbejdere[Andre\nfradrag],Stub),\"\")","v":240.42600000000004}]
[null,null,"fradrag i alt "]
[null,null,null,null,null,null,null,null,null,null,"NETTOLØN",null,{"$f":"IFERROR(INDEX(Medarbejdere[Nettobetaling],Stub),\"\")","v":291.57399999999996}]
[]
[]
[null,null,{"$f":"Firmanavn","v":"ADVENTURE WORKS"}]
[null,null,"PERIODE",{"$f":"PeriodeAfslutning","v":41372},null,null,"NAVN",{"$f":"IFERROR(INDEX(#REF!,Stub),\"\")","v":""},null,null,"MEDARBEJDER-ID",{"$f":"IFERROR(INDEX(Medarbejdere[Id],Stub),\"\")","v":1008}]
[null,null,"Skattestatus",null,{"$f":"IFERROR(INDEX(Medarbejdere[Skatte-\nstatus],Stub),\"\")","v":1},null,"Føderalt fradrag (fra W-4)",null,{"$f":"IFERROR(INDEX(Medarbejdere[Føderalt\nfradrag],Stub),\"\")","v":0},null,"Timer, der er arbejdet",null,{"$f":"IFERROR(INDEX(Medarbejdere[Normalt antal arbejdstimer],Stub),\"\")","v":50}]
[null,null,"Timesats",null,{"$f":"IFERROR(INDEX(Medarbejdere[Timeløn],Stub),\"\")","v":20},null,"Overtidssats",null,{"$f":"IFERROR(INDEX(Medarbejdere[Overtidssats],Stub),\"\")","v":0},null,"Timer pga. sygdom",null,{"$f":"IFERROR(INDEX(Medarbejdere[Timer\npga. sygdom],Stub),\"\")","v":1}]
[null,null,"Sygesikringsskat",null,{"$f":"IFERROR(INDEX(Medarbejdere[Sygesirings-\nskat],Stub)  *  INDEX(Medarbejdere[Brutto- betaling],Stub),\"\")","v":70.56},null,"Føderal indkomstskat ",null,{"$f":"IFERROR(INDEX(Medarbejdere[Føderal\nindkomstskat],Stub)  *  INDEX(Medarbejdere[Brutto- betaling],Stub),\"\")","v":313.60000000000002},null,"Timer pga. ferie",null,{"$f":"IFERROR(INDEX(Medarbejdere[Timer pga. ferie],Stub),\"\")","v":5}]
[null,null,"Skat for medicare ",null,{"$f":"IFERROR(INDEX(Medarbejdere[Skat til \nMedicare],Stub)  *  INDEX(Medarbejdere[Brutto- betaling],Stub),\"\")","v":16.240000000000002},null,"Delstatsskat ",null,{"$f":"IFERROR(INDEX(Medarbejdere[Delstats-\nskat],Stub)  *  INDEX(Medarbejdere[Brutto- betaling],Stub),\"\")","v":25.759999999999998},null,"Timer pga. overtid",null,{"$f":"IFERROR(INDEX(Medarbejdere[Timer pga. overtid],Stub),\"\")","v":0}]
[null,null,"Fradrag pga. forsikring",null,{"$f":"IFERROR(INDEX(Medarbejdere[Fradrag pga. forsikring],Stub),\"\")","v":15},null,"Andet almindeligt fradrag",null,{"$f":"IFERROR(INDEX(Medarbejdere[Andre almindelige fradrag],Stub),\"\")","v":0},null,"Bruttoløn",null,{"$f":"IFERROR(INDEX(Medarbejdere[Brutto- betaling],Stub),\"\")","v":1120}]
[null,null,"Skatter og almindelige",null,{"$f":"IFERROR(INDEX(Medarbejdere[Skatter og fradrag],Stub),\"\")","v":441.16000000000008},null,"Andet fradrag",null,{"$f":"IFERROR(INDEX(Medarbejdere[Andre\nfradrag],Stub),\"\")","v":0},null,"Skatter og fradrag i alt ",null,{"$f":"IFERROR(INDEX(Medarbejdere[Skatter og fradrag],Stub)  +  INDEX(Medarbejdere[Andre\nfradrag],Stub),\"\")","v":441.16000000000008}]
[null,null,"fradrag i alt "]
[null,null,null,null,null,null,null,null,null,null,"NETTOLØN",null,{"$f":"IFERROR(INDEX(Medarbejdere[Nettobetaling],Stub),\"\")","v":678.83999999999992}]